[Event "GrandPrix_30.05"]
[Site "Chess.com"]
[Date "2020.05.30"]
[Round "7"]
[White "Andrei_Belozerov"]
[Black "TheJoker64"]
[Result "0-1"]
[WhiteElo "2381"]
[BlackElo "2307"]
[TimeControl "600+2"]
[EndTime "11:27:53 PDT"]
[Termination "TheJoker64 won by resignation"]

1. e4 {[%clk 0:10:01.9]} 1... c5 {[%clk 0:09:59.8]} 2. Nf3 {[%clk 0:10:02.4]}
2... Nc6 {[%clk 0:10:00.5]} 3. d4 {[%clk 0:10:03.1]} 3... cxd4 {[%clk
0:09:58.6]} 4. Nxd4 {[%clk 0:10:04.7]} 4... Qb6 {[%clk 0:09:59.3]} 5. Nb3 {[%clk
0:09:59.5]} 5... Nf6 {[%clk 0:09:58.9]} 6. Nc3 {[%clk 0:09:59.5]} 6... e6 {[%clk
0:10:00]} 7. g3 {[%clk 0:09:46.7]} 7... a6 {[%clk 0:09:34.1]} 8. Bg2 {[%clk
0:09:43]} 8... Qc7 {[%clk 0:09:28.7]} 9. O-O {[%clk 0:09:37.6]} 9... d6 {[%clk
0:09:29.1]} 10. a4 {[%clk 0:09:09]} 10... b6 {[%clk 0:09:27.6]} 11. g4 {[%clk
0:08:51.5]} 11... Be7 {[%clk 0:09:10]} 12. g5 {[%clk 0:08:50.5]} 12... Nd7
{[%clk 0:09:10.7]} 13. f4 {[%clk 0:08:46.7]} 13... Bb7 {[%clk 0:08:15.7]} 14.
Be3 {[%clk 0:08:44.7]} 14... h6 {[%clk 0:08:10.8]} 15. h4 {[%clk 0:08:11.2]}
15... hxg5 {[%clk 0:08:02.3]} 16. hxg5 {[%clk 0:08:10.1]} 16... Nc5 {[%clk
0:07:40]} 17. Qe2 {[%clk 0:07:41.4]} 17... g6 {[%clk 0:07:26.1]} 18. f5 {[%clk
0:07:13.9]} 18... Ne5 {[%clk 0:07:07.1]} 19. f6 {[%clk 0:07:12.3]} 19... Bf8
{[%clk 0:07:05]} 20. Nd4 {[%clk 0:07:07.1]} 20... Rh4 {[%clk 0:06:45]} 21. Rf4
{[%clk 0:06:36.2]} 21... Rh5 {[%clk 0:06:33.4]} 22. Rf2 {[%clk 0:06:34.7]} 22...
Rh4 {[%clk 0:06:28.2]} 23. Bf4 {[%clk 0:05:09.4]} 23... Rc8 {[%clk 0:05:10]} 24.
Rd1 {[%clk 0:05:06]} 24... Ncd7 {[%clk 0:04:59.9]} 25. Nb1 {[%clk 0:02:56.2]}
25... Qc5 {[%clk 0:04:39]} 26. c3 {[%clk 0:01:56.1]} 26... Ng4 {[%clk
0:03:09.9]} 27. Bg3 {[%clk 0:01:48.5]} 27... Nxf2 {[%clk 0:03:08]} 28. Bxf2
{[%clk 0:01:47]} 28... Qxg5 {[%clk 0:02:27.3]} 29. Nf3 {[%clk 0:01:45.3]} 29...
Rxe4 {[%clk 0:02:27.8]} 30. Nxg5 {[%clk 0:01:36.2]} 30... Rxe2 {[%clk
0:02:28.4]} 31. Bxb7 {[%clk 0:01:37.1]} 31... Rc4 {[%clk 0:01:26.2]} 32. Nf3
{[%clk 0:00:48.6]} 32... Nxf6 {[%clk 0:01:08.1]} 33. Bxa6 {[%clk 0:00:45.6]}
33... Rg4+ {[%clk 0:01:08.2]} 34. Kf1 {[%clk 0:00:45]} 34... Rxb2 {[%clk
0:01:08.4]} 35. Bb5+ {[%clk 0:00:39.9]} 35... Ke7 {[%clk 0:01:07.9]} 36. Nbd2
{[%clk 0:00:29.5]} 36... Bh6 {[%clk 0:01:01.2]} 37. Bxb6 {[%clk 0:00:19.6]}
37... Nd5 {[%clk 0:00:52.7]} 38. Ba5 {[%clk 0:00:15.1]} 38... Ne3+ {[%clk
0:00:51.6]} 39. Ke2 {[%clk 0:00:15.9]} 39... Rg2+ {[%clk 0:00:50.1]} 40. Kd3
{[%clk 0:00:17.1]} 40... Nxd1 {[%clk 0:00:51.4]} 0-1

[Event "GrandPrix_30.05"]
[Site "Chess.com"]
[Date "2020.05.30"]
[Round "7"]
[White "Grebnev_A"]
[Black "BMOchsner"]
[Result "1-0"]
[WhiteElo "2218"]
[BlackElo "2278"]
[TimeControl "600+2"]
[EndTime "11:27:57 PDT"]
[Termination "Grebnev_A won on time"]

1. c4 {[%clk 0:10:01.9]} 1... e5 {[%clk 0:09:54.2]} 2. Nc3 {[%clk 0:10:02.7]}
2... Bb4 {[%clk 0:09:52.9]} 3. Nd5 {[%clk 0:10:03.2]} 3... a5 {[%clk 0:09:54.1]}
4. g3 {[%clk 0:10:03.6]} 4... Nf6 {[%clk 0:09:40.3]} 5. Nxb4 {[%clk 0:10:01.2]}
5... axb4 {[%clk 0:09:40.3]} 6. Bg2 {[%clk 0:10:03.1]} 6... c5 {[%clk
0:09:29.2]} 7. d3 {[%clk 0:10:00.8]} 7... Nc6 {[%clk 0:09:17.2]} 8. Nf3 {[%clk
0:10:01.4]} 8... d6 {[%clk 0:09:04.4]} 9. O-O {[%clk 0:10:01.8]} 9... h6 {[%clk
0:08:57.7]} 10. Ne1 {[%clk 0:09:53]} 10... O-O {[%clk 0:08:54.9]} 11. Nc2 {[%clk
0:09:53]} 11... Be6 {[%clk 0:08:44.1]} 12. a3 {[%clk 0:09:51]} 12... d5 {[%clk
0:08:08.2]} 13. cxd5 {[%clk 0:09:50.2]} 13... Bxd5 {[%clk 0:08:08.4]} 14. Be3
{[%clk 0:09:42.7]} 14... Bxg2 {[%clk 0:08:04.2]} 15. Kxg2 {[%clk 0:09:44.6]}
15... Qd5+ {[%clk 0:08:00.2]} 16. Kg1 {[%clk 0:09:45.3]} 16... b3 {[%clk
0:07:54.2]} 17. Ne1 {[%clk 0:09:40.5]} 17... Rfd8 {[%clk 0:06:36.2]} 18. Nf3
{[%clk 0:09:35.6]} 18... b5 {[%clk 0:05:49.4]} 19. Rc1 {[%clk 0:09:34.7]} 19...
Nd4 {[%clk 0:05:45.1]} 20. Bxd4 {[%clk 0:09:33]} 20... exd4 {[%clk 0:05:44]} 21.
Nd2 {[%clk 0:09:34.1]} 21... Rab8 {[%clk 0:02:23.5]} 22. Qxb3 {[%clk 0:09:18.9]}
22... c4 {[%clk 0:02:19.9]} 23. dxc4 {[%clk 0:09:09.3]} 23... bxc4 {[%clk
0:02:20.5]} 24. Qxc4 {[%clk 0:09:11.2]} 24... Rxb2 {[%clk 0:02:20.4]} 25. Qxd5
{[%clk 0:09:11.2]} 25... Nxd5 {[%clk 0:02:21.2]} 26. Nf3 {[%clk 0:09:01.7]}
26... Nc3 {[%clk 0:01:47.2]} 27. Nxd4 {[%clk 0:08:57.6]} 27... Na2 {[%clk
0:01:47.3]} 28. Rcd1 {[%clk 0:08:55]} 28... Nc3 {[%clk 0:01:45.6]} 29. Rc1
{[%clk 0:08:55.5]} 29... Na2 {[%clk 0:01:40.7]} 30. Rc2 {[%clk 0:08:40.2]} 30...
Rxc2 {[%clk 0:01:40.9]} 31. Nxc2 {[%clk 0:08:42.1]} 31... Rd2 {[%clk 0:01:42]}
32. Nb4 {[%clk 0:08:37.5]} 32... Nxb4 {[%clk 0:01:42]} 33. axb4 {[%clk
0:08:39.4]} 33... Rb2 {[%clk 0:01:43.1]} 34. Rc1 {[%clk 0:08:36.2]} 34... Rxb4
{[%clk 0:01:43.9]} 35. Kg2 {[%clk 0:08:35.7]} 35... h5 {[%clk 0:01:44.9]} 36. h4
{[%clk 0:08:36.1]} 36... g6 {[%clk 0:01:46.1]} 37. Rc7 {[%clk 0:08:35.1]} 37...
Kg7 {[%clk 0:01:46.5]} 38. Kf3 {[%clk 0:08:36.1]} 38... Rb3+ {[%clk 0:01:47.2]}
39. e3 {[%clk 0:08:37.1]} 39... Rb4 {[%clk 0:01:48.3]} 40. e4 {[%clk 0:08:36.7]}
40... Rb2 {[%clk 0:01:48]} 41. Ke3 {[%clk 0:08:36]} 41... Kf6 {[%clk 0:01:45.7]}
42. f3 {[%clk 0:08:35.4]} 42... Rb3+ {[%clk 0:01:45.4]} 43. Kf4 {[%clk
0:08:36.4]} 43... Rb4 {[%clk 0:01:46.7]} 44. Ra7 {[%clk 0:08:36.6]} 44... Rc4
{[%clk 0:01:46.6]} 45. g4 {[%clk 0:08:10.5]} 45... hxg4 {[%clk 0:01:46.1]} 46.
Kxg4 {[%clk 0:08:12.4]} 46... Rc1 {[%clk 0:01:41.9]} 47. Kf4 {[%clk 0:08:02.7]}
47... Rc4 {[%clk 0:01:35.6]} 48. Ra6+ {[%clk 0:08:01.8]} 48... Kg7 {[%clk
0:01:36.3]} 49. Kg4 {[%clk 0:08:01.6]} 49... Rc5 {[%clk 0:01:30.9]} 50. Ra7
{[%clk 0:07:58]} 50... Rc1 {[%clk 0:01:31]} 51. e5 {[%clk 0:07:55.2]} 51... Re1
{[%clk 0:01:26.6]} 52. f4 {[%clk 0:07:54.8]} 52... Re3 {[%clk 0:01:13.1]} 53.
Ra2 {[%clk 0:07:26]} 53... Rb3 {[%clk 0:01:08.9]} 54. Rg2 {[%clk 0:07:20.1]}
54... Rb4 {[%clk 0:01:05.9]} 55. h5 {[%clk 0:07:15.9]} 55... gxh5+ {[%clk
0:00:58]} 56. Kxh5+ {[%clk 0:07:17.8]} 56... Kf8 {[%clk 0:00:47.6]} 57. Kg5
{[%clk 0:07:18.5]} 57... Rb1 {[%clk 0:00:46.5]} 58. Ra2 {[%clk 0:07:12.7]} 58...
Kg7 {[%clk 0:00:46.2]} 59. Rg2 {[%clk 0:07:12.8]} 59... Kf8 {[%clk 0:00:46.7]}
60. Kf5 {[%clk 0:07:09.3]} 60... Rb6 {[%clk 0:00:43.8]} 61. Rd2 {[%clk
0:07:00.8]} 61... Kg7 {[%clk 0:00:43.5]} 62. Rd7 {[%clk 0:06:59.6]} 62... Ra6
{[%clk 0:00:44.7]} 63. Kg5 {[%clk 0:07:00.5]} 63... Rg6+ {[%clk 0:00:45.4]} 64.
Kf5 {[%clk 0:06:58.7]} 64... Ra6 {[%clk 0:00:45.9]} 65. Ke4 {[%clk 0:06:57]}
65... Ra4+ {[%clk 0:00:46.6]} 66. Kf3 {[%clk 0:06:58.2]} 66... Kg6 {[%clk
0:00:20.5]} 67. Rd6+ {[%clk 0:06:53.1]} 67... Kg7 {[%clk 0:00:21.2]} 68. Kg4
{[%clk 0:06:48.3]} 68... Rb4 {[%clk 0:00:20.9]} 69. Rd7 {[%clk 0:06:43.7]} 69...
Rb6 {[%clk 0:00:21.6]} 70. Rd4 {[%clk 0:06:45.1]} 70... Ra6 {[%clk 0:00:22.3]}
71. f5 {[%clk 0:06:45.2]} 71... Ra1 {[%clk 0:00:20.5]} 72. Kg5 {[%clk 0:06:44]}
72... Rg1+ {[%clk 0:00:21.2]} 73. Rg4 {[%clk 0:06:45.2]} 73... Rf1 {[%clk
0:00:17.4]} 74. f6+ {[%clk 0:06:41]} 74... Kh7 {[%clk 0:00:08.4]} 75. Rh4+
{[%clk 0:06:42.1]} 75... Kg8 {[%clk 0:00:09.3]} 76. Ra4 {[%clk 0:06:44]} 76...
Rg1+ {[%clk 0:00:09.9]} 77. Kf5 {[%clk 0:06:44.8]} 77... Rf1+ {[%clk 0:00:10.7]}
78. Ke4 {[%clk 0:06:45.5]} 78... Re1+ {[%clk 0:00:11.7]} 79. Kd5 {[%clk
0:06:46.6]} 79... Rd1+ {[%clk 0:00:12.5]} 80. Kc6 {[%clk 0:06:47.1]} 80... Rd2
{[%clk 0:00:06.5]} 81. Kc5 {[%clk 0:06:39.6]} 81... Rd1 {[%clk 0:00:06.6]} 82.
Rd4 {[%clk 0:06:37.8]} 82... Re1 {[%clk 0:00:07.6]} 83. Kd6 {[%clk 0:06:38.5]}
83... Re2 {[%clk 0:00:07.3]} 84. Rc4 {[%clk 0:06:34.4]} 84... Re1 {[%clk
0:00:06.6]} 85. Rc5 {[%clk 0:06:24.2]} 85... Kh7 {[%clk 0:00:04.1]} 86. Rc4
{[%clk 0:06:23.5]} 86... Kg6 {[%clk 0:00:04.4]} 87. Rc5 {[%clk 0:05:56.9]} 87...
Rd1+ {[%clk 0:00:03.4]} 88. Ke7 {[%clk 0:05:57.7]} 88... Re1 {[%clk 0:00:04.8]}
89. Kf8 {[%clk 0:05:55.4]} 89... Re2 {[%clk 0:00:04.5]} 90. Ke7 {[%clk
0:05:41.9]} 90... Re1 {[%clk 0:00:05.6]} 91. Rd5 {[%clk 0:05:43]} 91... Re2
{[%clk 0:00:06.3]} 92. Kd6 {[%clk 0:05:44.3]} 92... Re1 {[%clk 0:00:07.2]} 93.
Rd2 {[%clk 0:05:45.7]} 93... Re3 {[%clk 0:00:06.2]} 94. Rg2+ {[%clk 0:05:38.5]}
94... Kf5 {[%clk 0:00:06.6]} 95. Rf2+ {[%clk 0:05:39.4]} 95... Kg6 {[%clk
0:00:07.5]} 96. Rg2+ {[%clk 0:05:24.9]} 96... Kf5 {[%clk 0:00:08.2]} 97. Ke7
{[%clk 0:05:26.4]} 97... Rxe5+ {[%clk 0:00:03.3]} 98. Kxf7 {[%clk 0:05:27.3]}
98... Ra5 {[%clk 0:00:04.1]} 99. Kg7 {[%clk 0:05:26]} 99... Ra7+ {[%clk
0:00:02.7]} 100. f7 {[%clk 0:05:27.3]} 100... Ke6 {[%clk 0:00:04.1]} 101. Re2+
{[%clk 0:05:28.8]} 101... Kd6 {[%clk 0:00:05.3]} 102. Kg8 {[%clk 0:05:29.8]} 1-0

[Event "GrandPrix_30.05"]
[Site "Chess.com"]
[Date "2020.05.30"]
[Round "7"]
[White "Funo09"]
[Black "Sanan_Sjugirov"]
[Result "1-0"]
[WhiteElo "2717"]
[BlackElo "2683"]
[TimeControl "600+2"]
[EndTime "11:28:03 PDT"]
[Termination "Funo09 won by resignation"]

1. e4 {[%clk 0:10:01.9]} 1... c5 {[%clk 0:10:00.1]} 2. Nc3 {[%clk 0:10:03.4]}
2... d6 {[%clk 0:09:59.7]} 3. f4 {[%clk 0:09:56.5]} 3... g6 {[%clk 0:09:49.7]}
4. Nf3 {[%clk 0:09:57.9]} 4... Bg7 {[%clk 0:09:49.6]} 5. d4 {[%clk 0:09:59.2]}
5... cxd4 {[%clk 0:09:38.9]} 6. Nxd4 {[%clk 0:10:01.1]} 6... Nc6 {[%clk
0:09:29.6]} 7. Be3 {[%clk 0:10:02.1]} 7... Nf6 {[%clk 0:08:30.5]} 8. Be2 {[%clk
0:10:03]} 8... O-O {[%clk 0:08:25.4]} 9. Nb3 {[%clk 0:10:04]} 9... a6 {[%clk
0:06:43.4]} 10. g4 {[%clk 0:08:56.9]} 10... b5 {[%clk 0:06:31.4]} 11. g5 {[%clk
0:08:57.8]} 11... Nd7 {[%clk 0:06:31.7]} 12. Qd2 {[%clk 0:08:47.2]} 12... Nb6
{[%clk 0:06:00.1]} 13. O-O-O {[%clk 0:08:34.1]} 13... Na4 {[%clk 0:04:18.3]} 14.
Nd4 {[%clk 0:06:14]} 14... Nxd4 {[%clk 0:03:33]} 15. Bxd4 {[%clk 0:06:13.6]}
15... Bxd4 {[%clk 0:03:34.5]} 16. Qxd4 {[%clk 0:06:12.7]} 16... Nxc3 {[%clk
0:03:35.5]} 17. Qxc3 {[%clk 0:06:13.6]} 17... Bb7 {[%clk 0:03:31.8]} 18. Qe3
{[%clk 0:05:28.6]} 18... Rc8 {[%clk 0:03:19.1]} 19. h4 {[%clk 0:05:17.5]} 19...
Qc7 {[%clk 0:03:11.3]} 20. Bd3 {[%clk 0:05:18.2]} 20... d5 {[%clk 0:03:11.6]}
21. e5 {[%clk 0:03:28.5]} 21... d4 {[%clk 0:03:12.3]} 22. Qh3 {[%clk 0:03:30]}
22... Bxh1 {[%clk 0:03:13.1]} 23. Rxh1 {[%clk 0:03:31.9]} 23... h5 {[%clk
0:01:43.2]} 24. gxh6 {[%clk 0:03:22.3]} 24... Kh8 {[%clk 0:01:35.9]} 25. h5
{[%clk 0:03:07.5]} 25... Qc6 {[%clk 0:01:21.4]} 26. Re1 {[%clk 0:01:05.4]} 26...
Qd5 {[%clk 0:00:36.4]} 27. Kb1 {[%clk 0:00:57.6]} 27... Rc6 {[%clk 0:00:25]} 28.
Be4 {[%clk 0:00:33.2]} 28... Qe6 {[%clk 0:00:23.7]} 29. Qg2 {[%clk 0:00:14.5]}
29... Rcc8 {[%clk 0:00:14.4]} 30. f5 {[%clk 0:00:13.9]} 30... Qxe5 {[%clk
0:00:05.5]} 31. hxg6 {[%clk 0:00:15]} 31... fxg6 {[%clk 0:00:06.3]} 32. fxg6
{[%clk 0:00:16.9]} 1-0

[Event "GrandPrix_30.05"]
[Site "Chess.com"]
[Date "2020.05.30"]
[Round "7"]
[White "OhanyanEminChess"]
[Black "Vesper2018"]
[Result "0-1"]
[WhiteElo "2052"]
[BlackElo "1981"]
[TimeControl "600+2"]
[EndTime "11:28:03 PDT"]
[Termination "Vesper2018 won by resignation"]

1. e4 {[%clk 0:10:01.9]} 1... c5 {[%clk 0:10:00.7]} 2. Nf3 {[%clk 0:10:02.1]}
2... d6 {[%clk 0:10:01.8]} 3. d4 {[%clk 0:10:02.7]} 3... cxd4 {[%clk 0:10:02.6]}
4. Nxd4 {[%clk 0:10:04.6]} 4... Nf6 {[%clk 0:10:03.6]} 5. Nc3 {[%clk 0:10:04.8]}
5... a6 {[%clk 0:10:04.7]} 6. Be3 {[%clk 0:10:01.2]} 6... e5 {[%clk 0:10:04.7]}
7. Nb3 {[%clk 0:09:55.8]} 7... Be7 {[%clk 0:10:05.2]} 8. h3 {[%clk 0:09:51.7]}
8... Be6 {[%clk 0:10:05]} 9. Qf3 {[%clk 0:09:52.2]} 9... O-O {[%clk 0:10:05.2]}
10. O-O-O {[%clk 0:09:50.3]} 10... b5 {[%clk 0:10:06.2]} 11. g4 {[%clk
0:09:50.6]} 11... b4 {[%clk 0:09:56.5]} 12. Nd5 {[%clk 0:09:49.6]} 12... Nxd5
{[%clk 0:09:57.7]} 13. exd5 {[%clk 0:09:51.5]} 13... Bc8 {[%clk 0:09:58.8]} 14.
Bd3 {[%clk 0:09:11.5]} 14... a5 {[%clk 0:09:43.9]} 15. Nd2 {[%clk 0:09:10]}
15... Nd7 {[%clk 0:09:38]} 16. Ne4 {[%clk 0:09:07.9]} 16... a4 {[%clk
0:09:14.6]} 17. Kb1 {[%clk 0:08:58.6]} 17... Ba6 {[%clk 0:08:41]} 18. Bxa6
{[%clk 0:08:45.2]} 18... Rxa6 {[%clk 0:08:40.9]} 19. g5 {[%clk 0:08:44.3]} 19...
Qc7 {[%clk 0:08:08.8]} 20. Rc1 {[%clk 0:08:33.1]} 20... a3 {[%clk 0:07:59.3]}
21. b3 {[%clk 0:06:58.1]} 21... f5 {[%clk 0:07:58.4]} 22. gxf6 {[%clk
0:06:58.9]} 22... Nxf6 {[%clk 0:07:59.6]} 23. c4 {[%clk 0:07:00.4]} 23... Nxd5
{[%clk 0:07:18.5]} 24. Qg4 {[%clk 0:07:00.8]} 24... Nf4 {[%clk 0:05:59.4]} 25.
Bxf4 {[%clk 0:06:18.7]} 25... Rxf4 {[%clk 0:05:58]} 26. Qe6+ {[%clk 0:06:20.1]}
26... Kh8 {[%clk 0:05:58.9]} 27. c5 {[%clk 0:05:39.9]} 27... Qb7 {[%clk
0:04:28.1]} 28. f3 {[%clk 0:01:15.3]} 28... dxc5 {[%clk 0:03:17]} 29. Qxe5
{[%clk 0:01:05]} 29... Rf8 {[%clk 0:02:54.4]} 30. Rhg1 {[%clk 0:00:52.6]} 30...
Bf6 {[%clk 0:02:34.1]} 31. Qxc5 {[%clk 0:00:52.1]} 31... Rd8 {[%clk 0:02:28]}
32. Rgd1 {[%clk 0:00:32.2]} 32... Rb8 {[%clk 0:01:46.3]} 33. Qf5 {[%clk
0:00:29.1]} 33... Rc6 {[%clk 0:01:33.1]} 34. Rxc6 {[%clk 0:00:11.8]} 34... Qxc6
{[%clk 0:01:34.4]} 35. Qd7 {[%clk 0:00:05.8]} 35... Qxd7 {[%clk 0:01:21.3]} 36.
Rxd7 {[%clk 0:00:07.7]} 36... Be5 {[%clk 0:01:19.3]} 37. Re7 {[%clk 0:00:06.5]}
37... Bb2 {[%clk 0:01:19.8]} 38. Nd2 {[%clk 0:00:03.4]} 38... h6 {[%clk
0:01:15.8]} 39. Nc4 {[%clk 0:00:04.5]} 39... Bc3 {[%clk 0:01:16.6]} 40. Kc2
{[%clk 0:00:04.8]} 40... Rf8 {[%clk 0:01:16.7]} 41. Re3 {[%clk 0:00:05.4]} 41...
Ba1 {[%clk 0:01:06.1]} 42. Nd6 {[%clk 0:00:04.2]} 42... Rf4 {[%clk 0:01:02.2]}
43. Kd3 {[%clk 0:00:03.6]} 43... Rd4+ {[%clk 0:01:02.5]} 0-1

[Event "GrandPrix_30.05"]
[Site "Chess.com"]
[Date "2020.05.30"]
[Round "7"]
[White "Jan1401"]
[Black "ZefirKa"]
[Result "0-1"]
[WhiteElo "2222"]
[BlackElo "2139"]
[TimeControl "600+2"]
[EndTime "11:28:13 PDT"]
[Termination "ZefirKa won by resignation"]

1. e4 {[%clk 0:09:59.9]} 1... c6 {[%clk 0:10:01.2]} 2. Nf3 {[%clk 0:10:00.2]}
2... d5 {[%clk 0:10:02.4]} 3. d3 {[%clk 0:10:01.5]} 3... dxe4 {[%clk 0:09:28.5]}
4. dxe4 {[%clk 0:10:01.9]} 4... Qxd1+ {[%clk 0:09:30.4]} 5. Kxd1 {[%clk
0:10:02.8]} 5... Nf6 {[%clk 0:09:32]} 6. Nfd2 {[%clk 0:10:01.8]} 6... e5 {[%clk
0:09:14.9]} 7. f3 {[%clk 0:09:51.2]} 7... Be6 {[%clk 0:09:02.3]} 8. Bc4 {[%clk
0:09:34.1]} 8... Bxc4 {[%clk 0:09:01.6]} 9. Nxc4 {[%clk 0:09:34.8]} 9... Nbd7
{[%clk 0:09:03.2]} 10. Be3 {[%clk 0:09:32.8]} 10... b5 {[%clk 0:08:29.7]} 11.
Na5 {[%clk 0:09:25]} 11... Rc8 {[%clk 0:08:26.5]} 12. a4 {[%clk 0:09:11.5]}
12... Bc5 {[%clk 0:08:02.2]} 13. Ke2 {[%clk 0:08:57.5]} 13... Bxe3 {[%clk
0:07:37.6]} 14. Kxe3 {[%clk 0:08:56.8]} 14... Nc5 {[%clk 0:07:38.7]} 15. Rd1
{[%clk 0:07:36.8]} 15... Nxa4 {[%clk 0:05:31.9]} 16. b3 {[%clk 0:07:28.6]} 16...
Nc5 {[%clk 0:05:10.6]} 17. Rd6 {[%clk 0:07:21.5]} 17... Ke7 {[%clk 0:05:07.4]}
18. Rxc6 {[%clk 0:07:17]} 18... Ne6 {[%clk 0:04:47.8]} 19. c3 {[%clk 0:06:45.8]}
19... Nc5 {[%clk 0:03:49.6]} 20. Na3 {[%clk 0:05:47.4]} 20... a6 {[%clk
0:03:33.5]} 21. Nc2 {[%clk 0:05:44.8]} 21... Nxb3 {[%clk 0:02:59.5]} 22. Rxc8
{[%clk 0:05:28.3]} 22... Rxc8 {[%clk 0:03:01.4]} 23. Nxb3 {[%clk 0:05:24.6]}
23... Rxc3+ {[%clk 0:03:02.5]} 24. Kd2 {[%clk 0:05:22.7]} 24... Rxb3 {[%clk
0:03:03.8]} 25. Rxa6 {[%clk 0:05:23.9]} 25... Nd7 {[%clk 0:02:59.2]} 26. Ne3
{[%clk 0:05:19.1]} 26... Nc5 {[%clk 0:02:29.8]} 27. Nd5+ {[%clk 0:03:53.2]}
27... Kd7 {[%clk 0:02:28.1]} 28. Ra7+ {[%clk 0:03:51.8]} 28... Kd6 {[%clk
0:02:29.4]} 29. Rxf7 {[%clk 0:03:47.5]} 29... Rb2+ {[%clk 0:02:30.7]} 30. Ke3
{[%clk 0:03:46.2]} 30... Rxg2 {[%clk 0:02:30.1]} 31. h4 {[%clk 0:03:45.2]} 31...
Ne6 {[%clk 0:01:57.7]} 32. Rb7 {[%clk 0:03:33.7]} 32... Nd4 {[%clk 0:01:31.1]}
33. f4 {[%clk 0:03:17.2]} 33... Nc2+ {[%clk 0:01:22.3]} 34. Kf3 {[%clk
0:03:08.7]} 34... Ne1+ {[%clk 0:01:23.3]} 35. Ke3 {[%clk 0:03:09.1]} 35... exf4+
{[%clk 0:01:19.6]} 36. Nxf4 {[%clk 0:03:00.9]} 36... Nc2+ {[%clk 0:01:08.7]} 37.
Kf3 {[%clk 0:02:56.8]} 37... Rg1 {[%clk 0:00:55.3]} 38. Nd3 {[%clk 0:02:47.2]}
38... Kc6 {[%clk 0:00:36.8]} 39. Rb8 {[%clk 0:02:41.3]} 39... Nd4+ {[%clk
0:00:34.2]} 40. Ke3 {[%clk 0:02:36.7]} 40... Ne6 {[%clk 0:00:29.3]} 41. Re8
{[%clk 0:02:13.9]} 41... Rg3+ {[%clk 0:00:26.2]} 42. Kd2 {[%clk 0:02:12.8]}
42... Nd4 {[%clk 0:00:20.6]} 43. Rd8 {[%clk 0:01:48.1]} 43... Nf3+ {[%clk
0:00:20.5]} 44. Ke2 {[%clk 0:01:45.3]} 44... Nxh4 {[%clk 0:00:19.3]} 45. Ne5+
{[%clk 0:01:41.3]} 45... Kc7 {[%clk 0:00:20.6]} 46. Rd5 {[%clk 0:01:38.1]} 46...
Kb6 {[%clk 0:00:20.8]} 47. Kf2 {[%clk 0:01:36.9]} 47... Rg2+ {[%clk 0:00:19.7]}
48. Ke3 {[%clk 0:01:37.8]} 48... Ng6 {[%clk 0:00:19.9]} 49. Nd3 {[%clk
0:01:34.3]} 49... Rg3+ {[%clk 0:00:17.8]} 50. Kd4 {[%clk 0:01:33.9]} 50... Ne7
{[%clk 0:00:18.3]} 51. Rd7 {[%clk 0:01:25.4]} 51... Nc6+ {[%clk 0:00:18.9]} 52.
Kc3 {[%clk 0:01:24.5]} 52... Ne5 {[%clk 0:00:19]} 53. Kd4 {[%clk 0:01:22.8]}
53... Rxd3+ {[%clk 0:00:19.2]} 54. Kxe5 {[%clk 0:01:24]} 54... Rxd7 {[%clk
0:00:21.1]} 55. Ke6 {[%clk 0:01:24.7]} 55... Rd1 {[%clk 0:00:22.1]} 0-1

[Event "GrandPrix_30.05"]
[Site "Chess.com"]
[Date "2020.05.30"]
[Round "7"]
[White "WoodlandMagic"]
[Black "Karacsonyi_Gellert"]
[Result "1-0"]
[WhiteElo "2125"]
[BlackElo "2183"]
[TimeControl "600+2"]
[EndTime "11:28:15 PDT"]
[Termination "WoodlandMagic won by resignation"]

1. d4 {[%clk 0:10:01.9]} 1... Nf6 {[%clk 0:10:00.5]} 2. c4 {[%clk 0:10:03.3]}
2... e6 {[%clk 0:10:01.4]} 3. Nc3 {[%clk 0:10:04.6]} 3... Bb4 {[%clk 0:10:02]}
4. e3 {[%clk 0:10:06]} 4... O-O {[%clk 0:10:03.1]} 5. Ne2 {[%clk 0:10:07]} 5...
c6 {[%clk 0:10:04.4]} 6. a3 {[%clk 0:10:04.1]} 6... Ba5 {[%clk 0:10:05.8]} 7. c5
{[%clk 0:10:04]} 7... d6 {[%clk 0:10:00.4]} 8. cxd6 {[%clk 0:10:05.9]} 8... Qxd6
{[%clk 0:10:01.3]} 9. b4 {[%clk 0:10:07.1]} 9... Bc7 {[%clk 0:10:02]} 10. g3
{[%clk 0:10:08.4]} 10... a5 {[%clk 0:09:57.1]} 11. b5 {[%clk 0:10:08.9]} 11...
e5 {[%clk 0:09:19.6]} 12. bxc6 {[%clk 0:10:02.6]} 12... Qxc6 {[%clk 0:08:22.5]}
13. d5 {[%clk 0:09:58.9]} 13... Qe8 {[%clk 0:08:19.8]} 14. Bg2 {[%clk
0:09:40.6]} 14... Bd6 {[%clk 0:08:20.3]} 15. Rb1 {[%clk 0:09:21.1]} 15... Na6
{[%clk 0:08:11.5]} 16. O-O {[%clk 0:09:13.8]} 16... Nc5 {[%clk 0:07:56.8]} 17.
Nb5 {[%clk 0:09:07.1]} 17... Qe7 {[%clk 0:07:47.3]} 18. Nec3 {[%clk 0:08:45.2]}
18... Bf5 {[%clk 0:07:33]} 19. Ra1 {[%clk 0:08:22.4]} 19... Rfd8 {[%clk
0:07:19.3]} 20. a4 {[%clk 0:08:18.9]} 20... Rac8 {[%clk 0:07:15.2]} 21. Ba3
{[%clk 0:08:19.4]} 21... b6 {[%clk 0:07:07.4]} 22. Nxd6 {[%clk 0:07:53.6]} 22...
Qxd6 {[%clk 0:07:02]} 23. e4 {[%clk 0:07:54.5]} 23... Bg6 {[%clk 0:06:56.4]} 24.
f4 {[%clk 0:07:30.7]} 24... exf4 {[%clk 0:06:35.1]} 25. gxf4 {[%clk 0:07:30.1]}
25... Qd7 {[%clk 0:06:21.3]} 26. e5 {[%clk 0:06:16.3]} 26... Nfe4 {[%clk
0:05:56.9]} 27. Rc1 {[%clk 0:04:42]} 27... Nxc3 {[%clk 0:04:05.1]} 28. Rxc3
{[%clk 0:04:42]} 28... Nxa4 {[%clk 0:04:00.3]} 29. Rxc8 {[%clk 0:04:36.3]} 29...
Rxc8 {[%clk 0:04:00.2]} 30. e6 {[%clk 0:03:29.1]} 30... fxe6 {[%clk 0:03:53.8]}
31. dxe6 {[%clk 0:03:29.6]} 31... Qxd1 {[%clk 0:02:39.6]} 32. Rxd1 {[%clk
0:03:31.5]} 32... Nc3 {[%clk 0:02:36.6]} 33. Re1 {[%clk 0:03:23.5]} 33... b5
{[%clk 0:02:28.2]} 34. Bd6 {[%clk 0:02:26]} 34... b4 {[%clk 0:01:49]} 35. Bb7
{[%clk 0:02:25.5]} 35... Rd8 {[%clk 0:01:10.9]} 36. Bc7 {[%clk 0:02:25.8]} 36...
Rd1 {[%clk 0:01:12.1]} 37. Rxd1 {[%clk 0:02:19.4]} 37... Nxd1 {[%clk 0:01:14]}
38. Bxa5 {[%clk 0:02:20.5]} 38... b3 {[%clk 0:01:15]} 39. Bd5 {[%clk 0:02:21.6]}
39... b2 {[%clk 0:00:50.2]} 40. e7+ {[%clk 0:02:18.7]} 40... Kh8 {[%clk
0:00:51.2]} 41. Ba2 {[%clk 0:02:17]} 41... Ne3 {[%clk 0:00:36.8]} 42. Bc3 {[%clk
0:02:09.7]} 42... Nd5 {[%clk 0:00:16.1]} 43. f5 {[%clk 0:01:37.4]} 43... Be8
{[%clk 0:00:08.2]} 44. Bxb2 {[%clk 0:01:37.8]} 44... Nxe7 {[%clk 0:00:07.2]} 45.
f6 {[%clk 0:01:38.9]} 45... Nf5 {[%clk 0:00:08.1]} 46. Be6 {[%clk 0:01:32.4]}
46... Bg6 {[%clk 0:00:03.1]} 47. Bxf5 {[%clk 0:01:33.2]} 47... Bf7 {[%clk
0:00:02.9]} 48. fxg7+ {[%clk 0:01:27.9]} 48... Kg8 {[%clk 0:00:03.9]} 49. Kf2
{[%clk 0:01:28.7]} 49... h5 {[%clk 0:00:04.4]} 50. Kg3 {[%clk 0:01:27.6]} 50...
h4+ {[%clk 0:00:02.5]} 51. Kxh4 {[%clk 0:01:24.7]} 51... Bg6 {[%clk 0:00:04.4]}
52. Be6+ {[%clk 0:01:24.8]} 1-0